bitfinex/quotes_ETHUSD_20250815
["timestamp","ask_amount","ask_price","bid_price","bid_amount"]
[1755274753573,0.002,4394.2,4394.1,2.29853666]
[1755274753758,0.002,4394.2,4394.1,10.77996166]
[1755274753960,0.002,4394.2,4394.1,12.88407888]
[1755274754228,0.002,4394.6,4394.5,2.27557173]
[1755274755300,2.8085,4394.6,4394.1,2.27576432]
[1755274755489,0.002,4394.6,4394.5,2.27557173]
[1755274755660,4.052,4394.6,4394.5,2.27557173]
[1755274755911,4.052,4394.6,4394.2,2.27570443]
[1755274756207,4.5126,4394.6,4392.9,0.4515]
[1755274756407,4.052,4394.6,4393.7,2.27596527]
[1755274756573,4.052,4394.6,4393.0,2.27634873]
[1755274756760,4.05,4394.5,4392.9,0.4515]
[1755274757102,0.002,4394.6,4392.9,0.4515]
[1755274757103,4.049,4394.4,4394.3,2.2756753]
[1755274757263,3.299,4394.4,4394.2,2.27569885]
[1755274757456,3.299,4394.4,4393.0,3.0]
[1755274757700,3.299,4394.4,4393.0,0.55]
[1755274757898,3.299,4394.4,4394.3,2.3892753]
[1755274758100,3.299,4394.4,4394.3,0.1136]
[1755274758308,0.002,4394.6,4394.3,0.1136]
[1755274758462,4.049,4394.4,4394.3,0.1136]
[1755274758668,9.13112352,4394.4,4392.6,2.27650641]
[1755274758904,9.13112352,4394.4,4392.1,2.3701]
[1755274758905,2.8065,4394.3,4393.9,0.1136]
[1755274759082,0.55,4394.2,4393.9,0.1136]
[1755274759404,0.4606,4394.2,4391.8,2.29974041]
[1755274759591,4.049,4394.1,4392.0,3.0]
[1755274759803,4.049,4394.0,4391.9,5.27690916]
[1755274760102,4.049,4394.0,4391.7,0.4515]
[1755274760313,2.27603787,4393.6,4392.1,2.27679865]
[1755274760487,0.55,4393.8,4392.1,2.27677928]
[1755274760660,2.8065,4393.9,4391.6,0.4515]
[1755274760859,2.8065,4393.9,4391.7,3.0]
[1755274761058,0.002,4394.9,4391.9,3.0]
[1755274761290,4.5086,4394.5,4393.0,2.2763015]
[1755274761605,4.5086,4394.5,4393.4,2.2761312]
[1755274761808,4.5086,4394.5,4392.6,2.72805385]
[1755274761809,4.048,4394.5,4393.3,3.0]
[1755274762117,4.048,4394.5,4393.1,0.4515]
[1755274762268,4.048,4394.5,4393.9,2.27584642]
[1755274762471,4.048,4394.5,4393.2,2.27624047]
[1755274762808,4.048,4394.5,4393.1,0.4515]
[1755274763108,4.048,4394.5,4393.9,2.27583455]
[1755274763312,4.048,4394.5,4392.9,2.3701]
[1755274763313,6.8545,4394.5,4392.5,0.4515]
[1755274763494,6.3939,4394.5,4392.6,3.0]
[1755274763816,0.4606,4394.4,4393.0,2.27630986]
[1755274763981,2.8065,4394.4,4392.2,2.27675178]
[1755274764175,0.4606,4394.3,4391.8,0.4515]
[1755274764410,0.4606,4394.3,4391.1,2.27733369]
[1755274764411,2.2761566,4393.4,4391.1,2.27733369]
[1755274764711,2.8065,4394.1,4392.7,2.27648092]
[1755274764864,2.8065,4394.1,4392.1,0.4515]
[1755274764865,4.047,4393.7,4392.1,0.4515]
[1755274765212,4.047,4393.7,4392.3,3.0]
[1755274765389,4.047,4393.7,4392.4,2.27665968]
[1755274765567,4.047,4393.7,4393.3,2.27615158]
[1755274765901,4.047,4393.7,4392.2,2.3701]
[1755274765902,4.047,4393.7,4392.9,2.27636343]
[1755274766402,4.047,4393.7,4393.6,2.27603787]
[1755274767399,0.002,4394.6,4394.5,2.27557173]
[1755274768493,2.8085,4394.6,4392.8,0.55]
[1755274768692,4.046,4394.5,4393.5,2.27608967]
[1755274769002,0.002,4394.6,4394.5,2.27557173]
[1755274769377,0.002,4394.6,4394.4,0.1136]
[1755274769562,2.8065,4394.5,4394.4,0.1136]
[1755274771564,4.045,4394.5,4394.4,0.1136]
[1755274771999,6.8515,4394.5,4394.4,0.1136]
[1755274772204,0.002,4394.6,4394.4,0.1136]
[1755274772499,6.8515,4394.5,4394.4,0.1136]
[1755274772867,0.4606,4394.5,4394.4,0.1136]
[1755274773066,6.8505,4394.5,4394.4,0.1136]
[1755274774488,9.67607173,4394.5,4394.4,0.1136]
[1755274774687,7.5141,4394.5,4394.3,0.001]
[1755274774882,4.7076,4394.5,4394.3,0.001]
[1755274775096,2.8065,4394.4,4394.3,0.001]
[1755274775606,5.63212352,4394.4,4394.3,0.001]
[1755274775781,8.63212352,4394.4,4394.3,0.001]
[1755274775968,9.10512842,4394.4,4394.3,0.001]
[1755274776302,9.4239778,4394.4,4394.3,0.001]
[1755274777119,2.82588247,4393.9,4393.8,0.001]
[1755274777294,9.98248247,4393.9,4393.8,0.001]
[1755274777498,13.34248737,4393.9,4393.8,0.001]
[1755274777996,12.86948247,4393.9,4393.8,0.001]
[1755274778723,13.34204312,4393.9,4393.8,0.001]
[1755274779234,9.29904312,4393.9,4393.8,0.001]
[1755274779516,13.34204312,4393.9,4393.8,0.001]
[1755274779720,13.22844312,4393.9,4393.8,0.001]
[1755274780035,2.82608967,4393.5,4393.4,0.001]
[1755274780348,2.82608967,4393.5,4392.9,0.001]
[1755274780349,5.82634873,4393.0,4392.9,0.001]
[1755274780485,0.55,4391.8,4390.6,0.001]
[1755274780687,0.1136,4391.4,4390.6,0.001]
[1755274780886,0.1136,4391.0,4390.6,0.001]
[1755274781088,4.043,4390.9,4390.6,0.001]
[1755274781288,4.042,4390.8,4390.6,0.001]
[1755274781518,4.042,4390.7,4390.6,0.001]
[1755274782087,4.042,4390.7,4390.6,0.1146]
[1755274782282,4.042,4390.7,4390.6,5.18379303]
[1755274782822,4.042,4390.7,4390.6,0.1146]
[1755274783606,4.042,4390.7,4390.6,2.84849303]
[1755274783806,4.042,4390.7,4390.6,0.5709]
[1755274784339,4.042,4390.7,4390.6,2.84849303]
[1755274784483,0.1136,4391.8,4390.7,2.27754116]
[1755274784689,4.042,4391.7,4391.3,0.1136]
[1755274785121,0.1136,4392.2,4391.2,2.27723073]
[1755274785431,4.042,4392.1,4391.6,0.1136]
[1755274785632,4.042,4392.0,4391.9,0.1136]
[1755274786445,0.1136,4392.6,4391.9,0.1136]
[1755274786446,0.10953,4392.5,4391.9,0.1136]
[1755274786645,4.041,4392.4,4391.9,2.39050421]
[1755274786803,4.041,4392.4,4392.3,0.1136]
[1755274787205,9.20465968,4392.4,4392.3,0.1136]
[1755274787446,9.20465968,4392.4,4390.6,0.4573]
[1755274787447,0.55,4392.3,4390.6,0.001]
[1755274787753,2.39055841,4391.9,4391.3,0.1136]
[1755274787934,4.041,4391.8,4391.3,0.1136]
[1755274788141,4.041,4391.7,4391.3,0.1136]
[1755274788342,4.041,4391.7,4390.6,0.4573]
[1755274788544,4.041,4391.7,4390.6,0.001]
[1755274788741,4.041,4391.7,4391.3,0.1136]
[1755274789129,2.887,4391.6,4390.6,0.001]
[1755274789329,0.55,4391.5,4390.7,0.1136]
[1755274789556,0.1136,4391.3,4390.7,0.1136]
[1755274789758,4.04,4391.2,4390.7,0.1136]
[1755274790057,2.887,4391.1,4390.7,0.1136]
[1755274790212,0.55,4390.7,4390.6,0.001]
[1755274790413,6.98114116,4390.7,4390.6,0.001]
[1755274790616,9.86814116,4390.7,4390.6,0.001]
[1755274790854,12.86814116,4390.7,4390.6,0.001]
[1755274791075,12.86814116,4390.7,4390.2,0.001]
[1755274791076,5.82774867,4390.3,4390.2,0.001]
[1755274791415,8.82834867,4390.3,4390.2,0.001]
[1755274791875,12.86834867,4390.3,4390.2,0.001]
[1755274792410,0.1136,4390.3,4390.2,0.001]
[1755274792737,4.039,4390.3,4390.2,0.001]
[1755274792950,5.5826,4391.0,4390.2,0.1146]
[1755274793242,2.27763985,4390.6,4390.2,0.1146]
[1755274793412,2.27774867,4390.3,4390.2,0.001]
[1755274793744,4.04,4390.3,4390.2,0.001]
[1755274793931,5.74919764,4391.0,4390.2,0.001]
[1755274794117,4.1536,4390.9,4390.3,0.1136]
[1755274794456,4.04,4390.8,4390.3,0.1136]
[1755274794668,4.04,4390.7,4390.2,0.001]
[1755274794813,4.04,4390.7,4390.5,0.1136]
[1755274795016,4.04,4390.7,4390.6,0.1136]
[1755274796033,4.04,4390.7,4390.2,0.001]
[1755274796356,0.4372,4390.6,4390.2,0.001]
[1755274796655,2.887,4390.6,4390.2,0.001]
[1755274796837,0.1136,4390.3,4390.2,0.001]
[1755274797354,4.039,4390.3,4390.2,0.001]
[1755274800259,0.1136,4390.8,4390.2,0.001]
[1755274800567,3.437,4390.3,4390.2,0.001]
[1755274800732,3.437,4390.3,4389.7,0.001]
[1755274800733,2.8280081,4389.8,4389.7,1e-08]
[1755274801063,2.82847524,4388.9,4387.6,0.001]
[1755274801226,15.33647524,4388.9,4387.6,0.001]
[1755274801422,9.021,4388.9,4387.8,2.27904081]
[1755274801654,5.471,4388.9,4387.6,0.001]
[1755274801858,11.78647524,4388.9,4387.6,0.001]
[1755274802161,9.508,4388.9,4388.8,0.4573]
[1755274802854,9.508,4388.9,4388.8,0.001]
[1755274803055,4.037,4389.3,4388.8,2.7926]
[1755274803354,4.037,4389.2,4389.1,2.27837142]
[1755274803555,4.037,4389.2,4389.1,8.06997142]
[1755274804262,4.037,4389.2,4389.1,5.73467142]
[1755274804561,4.037,4389.2,4388.8,0.001]
[1755274804920,2.887,4389.1,4388.8,0.001]
[1755274805151,2.82847524,4388.9,4388.8,0.001]
[1755274805625,3.437,4388.9,4388.8,0.001]
[1755274805825,5.71547524,4388.9,4388.8,0.001]
[1755274806070,5.471,4389.0,4388.8,0.001]
[1755274806278,6.86447524,4388.9,4388.8,0.001]
[1755274806572,5.471,4389.0,4388.8,0.001]
[1755274806954,4.035,4388.9,4388.8,0.001]
[1755274807610,5.471,4389.0,4388.8,0.001]
[1755274808100,5.471,4389.0,4388.9,2.7535]
[1755274808309,4.035,4389.0,4388.9,5.7535]
[1755274808510,4.035,4389.0,4388.9,8.03197524]
[1755274808820,4.035,4389.0,4388.8,0.001]
[1755274809183,2.2778532,4390.1,4388.8,0.001]
[1755274809381,0.55,4389.9,4388.8,0.001]
[1755274809584,2.27813312,4389.6,4388.8,0.001]
[1755274809903,4.035,4389.5,4388.8,0.001]
[1755274810112,4.034,4389.4,4388.8,0.001]
[1755274810274,4.034,4389.3,4388.8,0.001]
[1755274810616,4.034,4389.3,4388.8,0.1146]
[1755274810815,0.1136,4389.4,4388.8,0.1146]
[1755274811031,3.11004663,4390.2,4389.1,0.1136]
[1755274811200,3.11004663,4390.2,4388.8,0.001]
[1755274811201,2.39155578,4390.0,4389.3,0.1136]
[1755274811382,0.1136,4390.0,4389.3,0.1136]
[1755274811583,0.55,4389.9,4389.3,0.1136]
[1755274811798,0.55,4389.7,4388.8,0.001]
[1755274811996,0.1136,4389.4,4388.8,0.1146]
[1755274812215,2.27827485,4389.3,4388.8,0.1146]
[1755274812584,0.1136,4389.4,4388.8,0.1146]
[1755274813282,0.55,4389.1,4388.8,0.001]
[1755274813486,2.94207524,4388.9,4388.8,0.001]
[1755274813924,5.80947524,4388.9,4388.8,0.001]
[1755274814096,0.1136,4388.9,4388.8,0.001]
[1755274814301,4.033,4388.9,4388.8,0.001]
[1755274815038,0.1136,4389.1,4388.8,0.001]
[1755274815214,4.032,4389.0,4388.8,0.1146]
[1755274815382,0.1136,4389.4,4388.8,0.1146]
[1755274815731,0.00767451,4674.6,4389.0,3.0]
[1755274815732,2.8326,4391.3,4389.0,3.0]
[1755274815916,4.032,4390.7,4389.1,2.77628371]
[1755274816116,4.032,4390.7,4390.1,2.27784062]
[1755274816317,4.032,4390.7,4389.2,3.4352]
[1755274816517,0.47,4390.6,4388.8,0.001]
[1755274816829,3.0,4390.5,4388.8,0.001]
[1755274817031,0.55,4390.4,4388.8,0.001]
[1755274817231,0.55,4390.2,4388.8,0.001]
[1755274817390,2.8674,4390.4,4389.0,2.27842086]
[1755274817732,3.47324912,4390.7,4389.1,2.27835862]
[1755274817920,2.27779213,4390.3,4388.9,2.71363138]
[1755274818107,2.27781569,4390.2,4388.9,2.71363138]
[1755274818307,4.031,4390.1,4388.9,0.4352]
[1755274818628,4.031,4390.1,4389.0,2.27842333]
[1755274818925,4.031,4390.1,4388.9,2.71366757]
[1755274819129,6.30885951,4390.1,4388.9,0.4352]
[1755274819342,5.8674,4390.7,4388.9,2.71364165]
[1755274819343,0.55,4390.6,4388.9,2.71364165]
[1755274819493,4.031,4390.5,4389.0,2.7535]
[1755274819694,4.03,4390.4,4389.1,0.4352]
[1755274819920,4.03,4390.4,4389.7,2.27804896]
[1755274820107,4.03,4390.4,4389.8,2.27799862]
[1755274820507,4.03,4390.4,4389.5,2.27812317]
[1755274820701,4.03,4390.4,4389.4,2.27817366]
[1755274820904,4.03,4390.4,4389.1,0.4352]
[1755274821095,2.27781083,4390.2,4388.9,2.27842946]
[1755274821318,0.55,4390.2,4388.5,3.4352]
[1755274821633,0.55,4390.2,4388.3,0.001]
[1755274821947,0.55,4390.0,4388.3,0.001]
[1755274822132,2.27801008,4389.8,4388.5,2.27867623]
[1755274822693,2.8674,4390.1,4388.3,0.001]
[1755274822913,6.30690653,4390.0,4388.7,2.2785752]
[1755274823138,4.029,4390.0,4388.4,0.4352]
[1755274823347,2.27801287,4389.8,4388.5,2.27867471]
[1755274823702,0.47,4390.1,4388.6,0.0227863]
[1755274823903,4.028,4390.0,4389.2,2.27828057]
[1755274824145,4.028,4390.0,4388.8,0.001]
[1755274824313,0.55,4389.6,4388.8,0.001]
[1755274824520,2.27847524,4388.9,4388.8,0.001]
[1755274824829,9.85647524,4388.9,4388.8,0.001]
[1755274825006,12.72387524,4388.9,4388.8,0.001]
[1755274825506,12.83747524,4388.9,4388.8,0.001]
[1755274825932,8.80947524,4388.9,4388.8,0.001]
[1755274826134,12.83747524,4388.9,4388.8,0.001]
[1755274827067,12.83747524,4388.9,4388.4,0.001]
[1755274827068,2.82868292,4388.5,4388.4,1e-08]
[1755274827230,5.82873484,4388.4,4388.3,1e-08]
[1755274827427,12.72313484,4388.4,4388.3,1e-08]
[1755274827953,13.19645115,4388.4,4388.3,1e-08]
[1755274828161,12.72313484,4388.4,4388.3,1e-08]
[1755274829458,12.67483,4388.4,4388.3,1e-08]
[1755274829745,13.1475832,4388.4,4388.3,1e-08]
[1755274829947,9.1205832,4388.4,4388.3,1e-08]
[1755274830275,9.41833484,4388.4,4388.3,1e-08]
[1755274830434,0.1136,4388.4,4388.3,1e-08]
[1755274830637,4.1396,4388.4,4388.3,1e-08]
[1755274830835,22.17609471,4388.4,4388.3,1e-08]
[1755274831343,25.17609471,4388.4,4388.3,1e-08]
[1755274831544,25.72609471,4388.4,4388.3,1e-08]
[1755274831748,25.83676267,4388.4,4388.3,1e-08]
[1755274832486,25.83676267,4388.4,4387.6,0.001]
[1755274832487,2.82894257,4388.0,4387.9,1e-08]
[1755274832649,6.85394257,4388.0,4387.9,1e-08]
[1755274832855,9.72134257,4388.0,4387.9,1e-08]
[1755274833068,12.72134257,4388.0,4387.9,1e-08]
[1755274833375,12.72134257,4388.0,4387.4,1e-08]
[1755274833376,5.82920227,4387.5,4387.4,1e-08]
[1755274833537,20.57895987,4387.5,4385.1,0.4352]
[1755274833738,20.57895987,4387.5,4386.6,1e-08]
[1755274833739,18.8335778,4386.7,4386.6,1e-08]
[1755274833935,22.8575778,4386.7,4386.6,1e-08]
[1755274834171,25.7249778,4386.7,4386.6,1e-08]
[1755274836287,8.69701793,4386.7,4386.6,1e-08]
[1755274836483,25.7259778,4386.7,4386.6,1e-08]
[1755274836842,0.55,4386.5,4383.9,0.4369]
[1755274837057,3.0,4386.6,4383.9,0.4369]
[1755274837058,2.28055371,4384.9,4383.9,0.4369]
[1755274837256,4.573,4384.8,4383.9,0.4369]
[1755274837455,2.28066489,4384.7,4383.9,0.4369]
[1755274837656,4.573,4384.6,4383.9,0.4369]
[1755274837862,2.2808164,4384.4,4383.9,0.4369]
[1755274838206,9.499,4384.3,4383.9,0.4369]
[1755274838419,4.024,4384.2,4384.0,2.7286]
[1755274838583,5.475,4384.3,4384.1,2.7286]
[1755274838784,5.475,4385.9,4384.2,2.7286]
[1755274838964,4.023,4385.8,4384.3,3.45970865]
[1755274839312,4.023,4385.8,4384.8,2.28056445]
[1755274839472,4.023,4385.8,4384.9,2.28054231]
[1755274839661,4.023,4385.8,4385.0,0.4369]
[1755274839863,4.023,4385.7,4385.6,3.0]
[1755274840177,4.023,4385.7,4385.6,5.7286]
[1755274840376,4.023,4385.7,4385.6,8.00878971]
[1755274840579,4.023,4385.7,4385.6,2.7286]
[1755274841102,4.023,4385.7,4385.6,2.843]
[1755274841407,0.55,4387.0,4385.8,2.28007572]
[1755274841602,4.022,4386.9,4385.9,2.7286]
[1755274841789,0.1136,4387.0,4386.4,0.1136]
[1755274842103,5.475,4387.5,4386.9,0.1136]
[1755274842400,4.022,4387.4,4387.0,2.7286]
[1755274842600,4.022,4387.4,4387.0,0.4369]
[1755274842809,4.022,4387.4,4387.1,0.1136]
[1755274843108,5.475,4387.5,4387.3,0.1136]
[1755274843274,5.475,4387.5,4387.4,5.00785422]
[1755274843474,0.1136,4388.6,4387.5,3.0]
[1755274843680,5.476,4389.1,4387.5,3.0]
[1755274843681,4.021,4388.5,4387.5,5.7286]
[1755274843903,4.021,4388.5,4388.4,2.27873484]
[1755274844067,4.021,4388.5,4388.4,5.12093484]
[1755274844607,4.021,4388.5,4388.4,2.8422]
[1755274844971,4.021,4388.5,4388.4,0.5505]
[1755274845373,4.021,4388.5,4388.4,2.8422]
[1755274845710,4.021,4388.5,4388.4,0.1136]
[1755274846073,6.29968292,4388.5,4388.4,0.1136]
[1755274846272,9.63988292,4388.5,4388.4,0.1136]
[1755274846472,0.55,4388.4,4386.5,0.4369]
[1755274846675,0.55,4387.3,4386.7,0.1136]
[1755274846977,3.0,4388.0,4386.2,0.1136]
[1755274846978,0.1136,4386.9,4386.2,0.1136]
[1755274847216,0.55,4386.7,4385.5,2.2917]
[1755274847371,0.1136,4386.6,4385.9,0.1144]
[1755274847908,6.29772731,4386.5,4386.0,0.1136]
[1755274848116,6.29772731,4386.5,4384.9,2.28053762]
[1755274848117,0.4316,4386.4,4384.9,0.4369]
[1755274848411,0.1144,4385.8,4385.2,0.1144]
[1755274848607,4.018,4385.7,4385.2,0.1144]
[1755274848793,0.1144,4385.5,4384.8,0.1144]
[1755274849306,0.11181524,4387.0,4385.4,0.1144]
[1755274849307,0.1136,4386.2,4385.4,0.1144]
[1755274849469,4.017,4386.1,4385.9,0.1144]
[1755274849672,4.017,4386.0,4385.9,0.1144]
[1755274850886,4.017,4386.0,4385.0,3.0]
[1755274851091,4.1306,4386.0,4385.3,0.1144]
[1755274851491,4.1306,4386.0,4385.3,2.39474281]
[1755274851813,0.1136,4386.4,4385.8,0.1144]
[1755274852028,0.1136,4386.4,4385.8,3.1144]
[1755274852215,0.1136,4386.4,4386.3,2.27982582]
[1755274852513,0.5415645,4388.1,4386.2,2.27987779]
[1755274852713,0.1136,4388.0,4387.3,0.1136]
[1755274852915,5.475,4388.5,4385.8,2.28006065]
[1755274852916,4.016,4387.9,4387.8,0.1136]
[1755274853522,4.016,4387.9,4387.8,2.39264644]
[1755274853684,5.475,4388.5,4387.8,0.1136]
[1755274853884,4.016,4388.4,4388.3,2.27878677]
[1755274854334,4.016,4388.4,4388.3,0.1136]
[1755274854508,4.016,4388.4,4388.3,2.82928677]
[1755274854708,4.016,4388.4,4388.3,5.12098677]
[1755274855087,4.016,4388.4,4388.3,8.12098677]
[1755274856836,4.013,4388.9,4388.3,2.8422]
[1755274857010,0.002,4389.4,4388.3,2.8422]
[1755274857011,0.002,4389.4,4389.2,2.27831951]
[1755274857212,0.002,4389.4,4389.2,2.39191951]
[1755274857437,1e-08,4389.3,4389.2,8.00691951]
[1755274857800,1e-08,4389.3,4389.2,5.6582745]
[1755274858002,1e-08,4389.3,4389.2,7.9499745]
[1755274858313,4.01300001,4389.3,4389.2,7.9499745]
[1755274860821,4.01300001,4389.3,4387.7,2.2917]
[1755274861027,1e-08,4389.3,4387.7,2.7286]
[1755274861262,4.01,4389.2,4387.7,2.7286]
[1755274861422,4.4416,4389.2,4387.2,0.4369]
[1755274861764,4.4416,4389.2,4387.6,3.0]
[1755274861765,4.01,4389.1,4387.6,3.0]
[1755274861938,4.01,4389.1,4387.3,3.0]
[1755274862262,4.01,4389.1,4388.1,2.27887764]
[1755274862458,4.01,4389.1,4388.0,2.27893135]
[1755274862667,4.01,4389.1,4387.2,2.7286]
[1755274862834,2.27852875,4388.8,4387.5,2.27918392]
[1755274863154,2.27852875,4388.8,4387.3,2.27928578]
[1755274863155,5.473,4388.7,4388.0,2.27893709]
[1755274863710,4.008,4388.6,4388.0,2.27889232]
[1755274863915,4.008,4388.6,4387.3,0.4369]
[1755274864205,4.008,4388.5,4388.1,2.27885312]
[1755274864379,4.007,4388.4,4388.2,2.27879247]
[1755274864591,4.007,4388.5,4388.4,2.27873484]
[1755274864890,4.007,4388.5,4387.8,5.27901703]
[1755274864891,4.007,4388.5,4387.8,0.4369]
[1755274865198,4.007,4388.5,4387.8,3.4369]
[1755274865403,1e-08,4389.3,4389.2,2.27831951]
[1755274865954,1e-08,4389.3,4389.0,2.27837693]
[1755274866197,1e-08,4389.3,4388.6,3.0]
[1755274866396,1e-08,4389.3,4387.8,0.4311]
[1755274866771,1e-08,4389.3,4389.2,2.27831951]
[1755274866966,4.00600001,4389.3,4388.9,2.27847486]
[1755274867181,4.00600001,4389.3,4388.7,2.27854793]
[1755274867380,4.00600001,4389.3,4389.2,0.1136]
[1755274867786,6.73350001,4389.3,4389.2,0.1136]
[1755274867991,6.73350001,4389.3,4388.0,2.27891094]
[1755274868306,2.27838453,4389.1,4388.7,0.1136]
[1755274868676,2.7275,4389.0,4388.7,0.1136]
[1755274868870,5.473,4389.2,4388.7,0.1136]
[1755274869091,2.27852716,4388.8,4387.2,0.4311]
[1755274869289,0.1136,4388.8,4388.2,0.1136]
[1755274870297,4.004,4388.7,4388.2,0.1136]
[1755274870504,4.004,4388.7,4388.1,2.27888248]
[1755274870699,4.004,4388.6,4388.5,0.1136]
[1755274870906,5.5866,4389.2,4388.5,0.1136]
[1755274871109,4.003,4389.1,4388.6,2.27862939]
[1755274871311,4.003,4389.1,4388.5,0.5447]
[1755274871312,4.003,4389.1,4389.0,0.1136]
[1755274871511,9.00887142,4389.1,4387.3,0.4311]
[1755274871679,6.8441,4389.1,4388.5,0.1136]
[1755274872575,5.473,4389.2,4388.5,0.1136]
[1755274872914,4.003,4389.1,4388.5,0.1136]
[1755274873686,6.28137334,4389.1,4388.5,0.1136]
[1755274874080,4.003,4389.1,4388.5,0.1136]
[1755274874640,4.003,4389.1,4387.1,3.001]
[1755274874641,2.27857907,4388.7,4387.1,0.001]
[1755274874812,0.55,4388.8,4387.1,0.001]
[1755274874813,2.27904644,4387.8,4387.1,0.001]
[1755274874980,6.28011027,4387.7,4387.3,0.1136]
[1755274875315,0.1136,4387.4,4387.1,0.001]
[1755274875819,4.001,4387.3,4387.1,0.001]
[1755274876046,2.27935813,4387.2,4387.1,0.001]
[1755274876345,8.2005,4387.2,4387.1,0.001]
[1755274876523,9.473,4387.2,4387.1,0.001]
[1755274876720,12.2005,4387.2,4387.1,0.001]
[1755274876924,14.59345813,4387.2,4387.1,0.001]
[1755274877107,15.14345813,4387.2,4387.1,0.001]
[1755274877311,9.473,4387.2,4387.1,0.001]
[1755274877749,9.473,4387.2,4387.1,0.1146]
[1755274877951,5.473,4387.2,4387.1,0.1146]
[1755274878112,12.9061,4387.2,4387.1,0.1146]
[1755274878436,14.47985813,4387.2,4387.1,0.001]
[1755274878819,12.2005,4387.2,4387.1,0.001]
[1755274879022,9.9061,4387.2,4387.1,0.001]
[1755274879213,14.47985813,4387.2,4387.1,0.001]
[1755274879552,12.2005,4387.2,4387.1,0.001]
[1755274879754,9.473,4387.2,4387.1,0.001]
[1755274880609,9.472,4387.2,4387.1,0.1146]
[1755274881515,14.47885813,4387.2,4387.1,0.001]
[1755274881760,7.86595813,4387.2,4387.1,0.001]
[1755274881960,14.59145813,4387.2,4387.1,0.001]
[1755274882460,14.47785813,4387.2,4387.1,0.001]
[1755274883336,14.47785813,4387.2,4386.1,0.001]
[1755274883337,0.55,4387.1,4386.1,0.001]
[1755274883539,18.95998769,4386.2,4386.1,1e-08]
[1755274883718,2.2803457,4385.3,4383.3,2.4072]
[1755274883916,22.8438556,4385.3,4383.0,0.4311]
[1755274884122,25.6857556,4385.3,4384.0,0.1144]
[1755274884321,25.6857556,4385.3,4383.0,0.4311]
[1755274884518,8.6722457,4385.3,4383.0,3.4311]
[1755274884718,12.6692457,4385.3,4384.2,0.1144]
[1755274885149,12.6692457,4385.3,4383.0,3.4311]
[1755274885460,12.6692457,4385.3,4385.2,1e-08]
[1755274886561,8.6722457,4385.3,4385.2,1e-08]
[1755274886763,12.5538457,4385.3,4385.2,1e-08]
[1755274886951,12.6682457,4385.3,4385.2,1e-08]
[1755274887154,5.9447457,4385.3,4385.2,1e-08]
[1755274887380,9.9407457,4385.3,4385.2,1e-08]
[1755274887880,2.3947457,4385.3,4385.2,1e-08]
[1755274888069,4.1094,4385.3,4385.2,1e-08]
[1755274888433,2.28019787,4385.6,4385.2,1e-08]
[1755274888434,0.4331,4386.5,4385.2,1e-08]
[1755274888774,0.4331,4387.1,4385.2,2.83830001]
[1755274888973,0.1136,4386.9,4386.1,0.1136]
[1755274889488,3.995,4386.8,4386.1,0.1136]
[1755274889789,3.995,4386.8,4385.2,0.43110001]
[1755274889790,2.8303457,4385.3,4385.2,1e-08]
[1755274890088,18.9612556,4385.3,4385.2,1e-08]
[1755274890289,25.6837556,4385.3,4385.2,1e-08]
[1755274890583,21.6887556,4385.3,4385.2,1e-08]
[1755274890883,25.6837556,4385.3,4385.2,1e-08]
[1755274891082,25.6827556,4385.3,4385.2,1e-08]
[1755274891848,21.6887556,4385.3,4385.2,1e-08]
[1755274892049,25.6837556,4385.3,4385.2,1e-08]
[1755274892379,21.6887556,4385.3,4385.2,1e-08]
[1755274892677,25.6827556,4385.3,4385.2,1e-08]
[1755274892854,12.6662457,4385.3,4385.2,1e-08]
[1755274893051,8.6722457,4385.3,4385.2,1e-08]
[1755274893375,9.9387457,4385.3,4385.2,1e-08]
[1755274893602,6.2743457,4385.3,4385.2,1e-08]
[1755274893998,12.5518457,4385.3,4385.2,1e-08]
[1755274894385,8.5578457,4385.3,4385.2,1e-08]
[1755274894906,12.5508457,4385.3,4385.2,1e-08]
[1755274895253,3.0,4384.7,4383.8,0.001]
[1755274895457,3.0,4384.7,4383.8,1e-08]
[1755274895458,18.86335617,4383.9,4383.8,1e-08]
[1755274895763,22.85635617,4383.9,4383.8,1e-08]
[1755274896293,21.59085617,4383.9,4383.8,1e-08]
[1755274896679,25.58285617,4383.9,4383.8,1e-08]
[1755274897560,21.59085617,4383.9,4383.8,1e-08]
[1755274898180,25.58285617,4383.9,4383.8,1e-08]
[1755274898384,23.28845617,4383.9,4383.8,1e-08]
[1755274898582,18.86335617,4383.9,4383.8,1e-08]
[1755274899159,22.85535617,4383.9,4383.8,1e-08]
[1755274899395,18.86335617,4383.9,4383.8,1e-08]
[1755274899601,22.85435617,4383.9,4383.8,1e-08]
[1755274899899,5.28107392,4383.9,4383.8,1e-08]
[1755274900412,9.58259089,4383.9,4383.8,1e-08]
[1755274900562,9.47,4383.9,4383.8,2.84670001]
[1755274900757,5.479,4383.9,4383.8,2.84670001]
[1755274900990,9.47,4383.9,4383.8,2.84670001]
[1755274901618,9.47,4383.9,4383.8,0.46650001]
[1755274902023,11.75107392,4383.9,4383.8,1e-08]
[1755274902240,25.33335617,4383.9,4383.8,1e-08]